bitfinex/quotes_BTCUSD_20260215
["timestamp","ask_amount","ask_price","bid_price","bid_amount"]
[1771132500280,0.0004,70231.0,70225.0,0.07119874]
[1771132501652,0.042,70230.0,70225.0,0.07119874]
[1771132501948,0.0004,70231.0,70225.0,0.07119874]
[1771132502272,0.03916649,70231.0,70225.0,0.07119874]
[1771132502398,0.07164823,70232.0,70225.0,0.07119874]
[1771132502601,0.042,70230.0,70225.0,0.07119874]
[1771132502850,0.042,70230.0,70225.0,0.10833767]
[1771132503052,0.07164823,70232.0,70225.0,0.10833767]
[1771132503392,0.042,70231.0,70226.0,0.07119869]
[1771132503562,0.042,70231.0,70227.0,0.03713893]
[1771132503762,0.07119905,70226.0,70220.0,0.00012]
[1771132503967,0.07119905,70226.0,70210.0,0.15570191]
[1771132503968,0.07120509,70220.0,70214.0,0.41245013]
[1771132504162,0.0463323,70219.0,70214.0,0.34123942]
[1771132504520,0.07120968,70216.0,70214.0,0.00019942]
[1771132504939,0.06101007,70216.0,70214.0,0.00019942]
[1771132506046,0.07120985,70215.0,70214.0,0.00019942]
[1771132507130,0.06101007,70216.0,70214.0,0.00019942]
[1771132507534,0.08901007,70216.0,70214.0,0.00019942]
[1771132507742,0.028,70216.0,70214.0,0.00019942]
[1771132507938,0.11753809,70221.0,70214.0,0.00019942]
[1771132508361,0.029,70216.0,70214.0,0.00019942]
[1771132508680,0.0712064,70219.0,70214.0,0.00019942]
[1771132508882,0.028,70216.0,70214.0,0.00019942]
[1771132509103,0.07120664,70220.0,70214.0,0.00019942]
[1771132509302,0.07120579,70219.0,70214.0,0.00019942]
[1771132509503,0.029,70216.0,70214.0,0.00019942]
[1771132510722,0.07120789,70217.0,70214.0,0.00019942]
[1771132510962,0.07120702,70218.0,70214.0,0.00019942]
[1771132511170,0.029,70216.0,70214.0,0.03733835]
[1771132511319,0.07120634,70219.0,70214.0,0.03733835]
[1771132511528,0.29840048,70230.0,70214.0,0.00019942]
[1771132511529,0.07120696,70218.0,70214.0,0.00019942]
[1771132511725,0.07120773,70219.0,70214.0,0.00019942]
[1771132512114,0.03,70216.0,70214.0,0.00019942]
[1771132512563,0.03,70216.0,70214.0,5.133e-05]
[1771132512907,0.0463323,70217.0,70214.0,5.133e-05]
[1771132513908,0.07120681,70218.0,70214.0,5.133e-05]
[1771132514110,0.10120681,70218.0,70214.0,5.133e-05]
[1771132514483,0.07120681,70218.0,70214.0,5.133e-05]
[1771132514862,0.031,70217.0,70214.0,5.133e-05]
[1771132515205,0.07160681,70218.0,70214.0,5.133e-05]
[1771132515608,0.10160681,70218.0,70214.0,5.133e-05]
[1771132515802,0.07160681,70218.0,70214.0,5.133e-05]
[1771132516001,0.0463323,70217.0,70214.0,5.133e-05]
[1771132517087,0.0783323,70217.0,70214.0,5.133e-05]
[1771132517465,0.0463323,70217.0,70214.0,5.133e-05]
[1771132517635,0.0773323,70217.0,70214.0,5.133e-05]
[1771132518101,0.07160681,70218.0,70214.0,5.133e-05]
[1771132518305,0.032,70217.0,70214.0,5.133e-05]
[1771132518459,0.07160681,70218.0,70214.0,5.133e-05]
[1771132518861,0.031,70217.0,70214.0,5.133e-05]
[1771132519083,0.031,70217.0,70214.0,0.07126205]
[1771132519287,0.07159941,70226.0,70219.0,0.07120539]
[1771132519448,0.07167941,70226.0,70220.0,0.04213893]
[1771132520009,0.07120139,70224.0,70218.0,0.07120645]
[1771132520322,0.07167941,70226.0,70219.0,0.0712048]
[1771132520464,0.07167941,70226.0,70218.0,0.07120639]
[1771132520831,0.07120141,70224.0,70217.0,0.07120742]
[1771132522213,0.10220141,70224.0,70217.0,0.07120742]
[1771132522688,0.07120198,70223.0,70217.0,0.07120742]
[1771132524241,0.09520198,70223.0,70217.0,0.07120742]
[1771132530993,0.024,70223.0,70217.0,0.07120742]
[1771132531576,0.024,70223.0,70215.0,0.04213893]
[1771132531778,0.024,70223.0,70217.0,0.07140714]
[1771132532401,0.09520187,70223.0,70217.0,0.07140714]
[1771132532605,0.07120187,70223.0,70217.0,0.07140714]
[1771132533010,0.08820187,70223.0,70217.0,0.07140714]
[1771132533212,0.07120187,70223.0,70217.0,0.07140714]
[1771132533411,0.07120187,70223.0,70217.0,0.0002]
[1771132533596,0.08920187,70223.0,70217.0,0.0032]
[1771132534239,0.08920187,70223.0,70217.0,0.0002]
[1771132534451,0.07120187,70223.0,70217.0,0.0002]
[1771132534912,0.08320187,70223.0,70217.0,0.0052]
[1771132535316,0.07120287,70222.0,70217.0,0.04733893]
[1771132536057,0.07120287,70222.0,70217.0,0.0002]
[1771132536441,0.07120287,70222.0,70217.0,0.0052]
[1771132536654,0.07120287,70222.0,70217.0,0.0002]
[1771132537038,0.012,70222.0,70217.0,0.0052]
[1771132537952,0.012,70222.0,70217.0,0.04733893]
[1771132538873,0.012,70222.0,70211.0,0.0002]
[1771132539080,0.07121097,70214.0,70211.0,0.0002]
[1771132540461,0.07121172,70215.0,70211.0,0.0002]
[1771132540782,0.07121199,70213.0,70211.0,0.0002]
[1771132542033,0.07122185,70204.0,70198.0,0.46789025]
[1771132542235,0.15651123,70209.0,70198.0,0.42575132]
[1771132542435,0.07122291,70203.0,70198.0,2.629e-05]
[1771132542742,0.07122369,70202.0,70194.0,0.07123076]
[1771132543091,0.07122425,70201.0,70194.0,0.07123076]
[1771132543461,0.07122533,70200.0,70193.0,0.07123185]
[1771132543668,0.07122533,70200.0,70194.0,0.07123105]
[1771132543869,0.07122425,70201.0,70194.0,0.07123105]
[1771132544198,0.11755655,70201.0,70194.0,0.07123105]
[1771132544851,0.11755655,70201.0,70195.0,0.07135693]
[1771132545056,0.11755655,70201.0,70195.0,0.0001272]
[1771132545492,0.0463323,70199.0,70195.0,0.0001272]
[1771132545672,0.07122678,70199.0,70195.0,0.0001272]
[1771132545877,0.0463323,70198.0,70195.0,0.0001272]
[1771132546078,0.07122678,70199.0,70195.0,0.0001272]
[1771132546282,0.07122514,70200.0,70195.0,0.0001272]
[1771132546930,0.07130966,70202.0,70195.0,0.07135668]
[1771132547533,0.07130966,70202.0,70195.0,0.07155668]
[1771132547899,8.639e-05,70202.0,70198.0,0.07122638]
[1771132548110,0.04641869,70202.0,70198.0,0.07122638]
[1771132549229,0.04641869,70202.0,70197.0,0.07122786]
[1771132549432,0.07122586,70200.0,70195.0,0.0003272]
[1771132549649,0.11755816,70200.0,70195.0,0.0003272]
[1771132549845,0.0463323,70200.0,70195.0,0.0003272]
[1771132550168,0.07122427,70201.0,70195.0,0.07155733]
[1771132550824,0.07122427,70201.0,70195.0,0.0003272]
[1771132551026,0.07122529,70200.0,70195.0,0.0003272]
[1771132551226,0.07122427,70201.0,70195.0,0.0003272]
[1771132552583,0.07122509,70200.0,70195.0,0.0003272]
[1771132552727,0.0463323,70195.0,70190.0,0.00012]
[1771132552925,0.07123326,70192.0,70190.0,0.00012]
[1771132553139,0.0712342,70191.0,70190.0,0.00012]
[1771132553345,0.00946138,70246.0,70190.0,0.00012]
[1771132553722,0.00946138,70246.0,70230.0,0.00012]
[1771132553723,0.04117351,70244.0,70230.0,0.00012]
[1771132553904,0.0197942,70244.0,70230.0,0.00012]
[1771132554050,0.0197942,70244.0,70242.0,0.07118157]
[1771132554277,0.0197942,70244.0,70231.0,0.07119261]
[1771132554475,0.00013019,70246.0,70231.0,0.04213893]
[1771132554683,0.00012,70250.0,70237.0,0.07118748]
[1771132554881,0.00012,70250.0,70237.0,0.07131767]
[1771132554882,0.15603647,70249.0,70237.0,0.07131767]
[1771132555082,0.15603647,70249.0,70238.0,0.06]
[1771132555641,0.15603647,70249.0,70242.0,0.0711822]
[1771132556095,0.0463323,70248.0,70242.0,0.0711822]
[1771132556438,0.0463323,70247.0,70242.0,0.0711822]
[1771132556681,0.0463323,70246.0,70242.0,0.0711822]
[1771132557072,0.0463323,70245.0,70242.0,0.0393822]
[1771132557461,0.0463323,70245.0,70242.0,0.03923415]
[1771132557950,0.141977,70246.0,70242.0,0.03923415]
[1771132558189,0.141977,70246.0,70243.0,0.07118123]
[1771132558411,0.141977,70246.0,70242.0,0.03923415]
[1771132560123,0.0463323,70245.0,70242.0,0.03923415]
[1771132561482,0.0463323,70245.0,70243.0,0.07118144]
[1771132562020,0.483057,70248.0,70244.0,0.07118032]
[1771132562219,0.483057,70248.0,70243.0,0.07118144]
[1771132562702,0.0004,70246.0,70244.0,0.07118042]
[1771132563438,0.0004,70246.0,70242.0,0.0711816]
[1771132564060,0.0463323,70245.0,70242.0,0.0711816]
[1771132564390,0.0463323,70245.0,70238.0,0.07118573]
[1771132564991,0.0463323,70245.0,70239.0,0.07118549]
[1771132565969,0.07157926,70246.0,70239.0,0.07118549]
[1771132566824,0.0004,70246.0,70241.0,0.07118274]
[1771132567025,1e-08,70246.0,70238.0,0.04213893]
[1771132567201,1e-08,70246.0,70245.0,0.07117944]
[1771132567408,0.34108,70248.0,70243.0,0.07118065]
[1771132567409,0.33808001,70248.0,70243.0,0.07118065]
[1771132567783,0.483057,70249.0,70240.0,0.28473407]
[1771132568132,0.483057,70249.0,70237.0,0.28487633]
[1771132568133,0.0463323,70248.0,70244.0,0.07117964]
[1771132568953,0.0463323,70247.0,70244.0,0.07117964]
[1771132569154,0.0463323,70247.0,70246.0,0.07117843]
[1771132569318,0.0463323,70247.0,70246.0,0.0447812]
[1771132569905,0.34108,70248.0,70247.0,0.07117741]
[1771132570235,0.34108,70248.0,70246.0,0.0447812]
[1771132571309,0.34108,70248.0,70245.0,0.07117913]
[1771132571731,0.34108,70248.0,70242.0,0.07118183]
[1771132571955,0.34108,70248.0,70242.0,0.07118248]
[1771132572132,0.0463323,70247.0,70242.0,0.07118248]
[1771132572456,0.0463323,70247.0,70243.0,0.07118147]
[1771132573217,0.0463323,70247.0,70244.0,0.07118027]
[1771132573906,0.34108,70248.0,70244.0,0.07118027]
[1771132574415,0.34108,70248.0,70243.0,0.07118147]
[1771132574617,0.07129444,70250.0,70237.0,0.00013019]
[1771132574890,0.07129444,70250.0,70230.0,0.0002217]
[1771132574891,0.0711934,70232.0,70230.0,1e-08]
[1771132575045,0.0711934,70232.0,70226.0,1e-08]
[1771132575046,0.07119595,70229.0,70226.0,1e-08]
[1771132575437,0.07069768,70227.0,70226.0,1e-08]
[1771132575856,0.07119697,70228.0,70226.0,1e-08]
[1771132576019,0.11752998,70227.0,70226.0,1e-08]
[1771132576389,0.0463323,70227.0,70226.0,1e-08]
[1771132576794,0.04616943,70227.0,70226.0,1e-08]
[1771132578048,0.07132462,70232.0,70226.0,1e-08]
[1771132578226,0.07132287,70232.0,70226.0,0.07119852]
[1771132579062,0.28473097,70242.0,70226.0,0.07119852]
[1771132579063,0.16289409,70296.0,70250.0,0.00012]
[1771132579262,0.00043417,70290.0,70280.0,3e-05]
[1771132579551,0.07113801,70286.0,70280.0,3e-05]
[1771132579758,0.07113682,70289.0,70281.0,0.07114217]
[1771132580107,0.07113593,70288.0,70280.0,0.07117397]
[1771132580445,0.04976359,70288.0,70280.0,0.07117397]
[1771132580639,0.02840845,70288.0,70280.0,0.07117397]
[1771132580888,0.00013011,70289.0,70280.0,3e-05]
[1771132581087,0.07113295,70291.0,70280.0,3e-05]
[1771132581289,0.07113295,70291.0,70280.0,0.00046417]
[1771132581496,0.07113295,70291.0,70280.0,0.00146417]
[1771132581692,0.04625086,70293.0,70286.0,0.07113707]
[1771132581893,0.04625086,70293.0,70280.0,0.00046417]
[1771132582111,0.07113286,70292.0,70284.0,0.11317868]
[1771132582316,0.07113184,70292.0,70284.0,0.04203893]
[1771132582691,0.07080857,70290.0,70284.0,0.04203893]
[1771132583525,0.07113184,70292.0,70284.0,0.11317803]
[1771132583729,0.07113395,70290.0,70284.0,0.04203893]
[1771132583930,0.07113184,70292.0,70285.0,0.07113873]
[1771132584232,0.07113396,70290.0,70282.0,0.07114114]
[1771132584388,0.07113097,70293.0,70284.0,0.07113901]
[1771132584596,0.07113097,70293.0,70286.0,0.07113785]
[1771132584806,0.07113097,70293.0,70285.0,0.07113875]
[1771132585043,0.0004,70295.0,70282.0,0.07114104]
[1771132585234,0.0004,70295.0,70283.0,0.07114095]
[1771132585235,0.07113366,70291.0,70283.0,0.07114095]
[1771132586208,0.07097077,70291.0,70284.0,0.04203893]
[1771132586410,0.07113405,70290.0,70284.0,0.04203893]
[1771132586860,0.07080786,70291.0,70284.0,0.04203893]
[1771132586861,0.07080786,70291.0,70284.0,0.07113917]
[1771132587074,0.07113196,70292.0,70286.0,0.04203893]
[1771132587328,0.0004,70295.0,70286.0,0.04203893]
[1771132587657,0.0004,70295.0,70286.0,0.03903893]
[1771132587974,0.07113691,70287.0,70280.0,0.00066417]
[1771132589181,0.07113824,70286.0,70280.0,0.00066417]
[1771132589529,0.04775086,70294.0,70280.0,0.00066417]
[1771132589530,0.07113539,70289.0,70280.0,0.00066417]
[1771132589906,0.07113776,70287.0,70280.0,0.07180721]
[1771132590194,0.07113776,70287.0,70281.0,0.04203893]
[1771132591860,0.07113614,70288.0,70281.0,0.04203893]
[1771132592062,0.04775086,70305.0,70291.0,0.07113252]
[1771132592460,0.0004,70295.0,70291.0,0.07113252]
[1771132593186,0.0004,70295.0,70290.0,0.07113368]
[1771132594191,0.0004,70295.0,70291.0,0.04203893]
[1771132595867,0.0004,70295.0,70293.0,0.07113006]
[1771132596915,0.0004,70295.0,70292.0,0.07113084]
[1771132597322,0.0004,70295.0,70291.0,0.07113254]
[1771132598342,0.0004,70295.0,70292.0,0.04203893]
[1771132600004,0.0004,70295.0,70291.0,0.07113254]
[1771132600706,0.0004,70295.0,70290.0,0.06359484]
[1771132600909,0.0004,70295.0,70290.0,0.09980922]
[1771132601572,0.0004,70295.0,70291.0,0.07113218]
[1771132601912,0.0004,70295.0,70292.0,0.04203893]
[1771132602211,0.00012,70300.0,70291.0,0.04203893]
[1771132602378,0.07124453,70300.0,70294.0,0.04203893]
[1771132602536,0.07112673,70298.0,70294.0,0.04203893]
[1771132602877,0.07112699,70297.0,70294.0,0.04203893]
[1771132603689,0.07112612,70298.0,70294.0,0.04203893]
[1771132604130,0.07112612,70298.0,70291.0,0.07113268]
[1771132604286,0.0003124,70308.0,70290.0,0.03621438]
[1771132604487,0.0003124,70308.0,70297.0,0.0711258]
[1771132604687,0.07111972,70304.0,70297.0,0.0711258]
[1771132604893,0.0003124,70308.0,70292.0,0.07113137]
[1771132605073,0.04775086,70300.0,70293.0,0.0711305]
[1771132605259,0.04977195,70301.0,70294.0,0.34084]
[1771132605922,0.07112446,70300.0,70294.0,0.38287893]
[1771132606262,0.0004,70303.0,70294.0,0.34084]
[1771132606465,0.0004,70303.0,70296.0,0.0711278]
[1771132606866,0.07152157,70303.0,70296.0,0.0711278]
[1771132607144,0.07152157,70303.0,70297.0,0.07112667]
[1771132607332,0.0004,70303.0,70297.0,0.07112667]
[1771132607960,0.0004,70303.0,70294.0,0.34084]
[1771132608160,0.07112339,70301.0,70294.0,0.41196978]
[1771132608317,0.07112274,70301.0,70294.0,0.41196906]
[1771132608515,0.07112274,70301.0,70294.0,0.34084]
[1771132608921,0.07112196,70302.0,70295.0,0.07112875]
[1771132609136,0.07163366,70310.0,70303.0,0.07112007]
[1771132609977,0.07163366,70310.0,70304.0,0.04203893]
[1771132610513,0.00052,70310.0,70306.0,0.07111752]
[1771132610684,0.00052,70310.0,70307.0,0.1131556]
[1771132610829,0.00052,70310.0,70309.0,0.11315358]
[1771132611035,0.00052,70310.0,70298.0,0.33489479]
[1771132611036,0.00012,70320.0,70313.0,0.07110966]
[1771132611402,0.0713538,70320.0,70313.0,0.07110966]
[1771132611650,0.07110482,70319.0,70312.0,0.04203893]
[1771132611785,0.00025001,70320.0,70312.0,0.04203893]
[1771132611988,0.00025001,70320.0,70305.0,0.49408948]
[1771132611989,0.07110897,70315.0,70305.0,0.49408948]
[1771132612312,0.0004,70309.0,70305.0,0.49408948]
[1771132612508,0.07110897,70315.0,70305.0,0.49408948]
[1771132612707,0.07150776,70316.0,70309.0,0.07111455]
[1771132613078,0.0004,70316.0,70305.0,0.3408]
[1771132613298,0.0004,70316.0,70311.0,0.07111193]
[1771132613731,0.0004,70316.0,70312.0,0.07111088]
[1771132614266,0.07109466,70329.0,70321.0,0.07110243]
[1771132614377,0.07149579,70328.0,70322.0,0.04203893]
[1771132614582,0.00040002,70328.0,70322.0,0.04203893]
[1771132614861,0.00040002,70328.0,70323.0,0.04203893]
[1771132615025,0.0710953,70329.0,70323.0,0.04203893]
[1771132615229,0.00040002,70328.0,70323.0,0.04203893]
[1771132615467,0.00012,70330.0,70316.0,0.3408]
[1771132615596,0.00012,70330.0,70320.0,0.07110279]
[1771132615798,0.07149528,70329.0,70321.0,0.09455038]
[1771132616031,0.07149458,70329.0,70322.0,0.07110077]
[1771132616201,0.07149458,70329.0,70321.0,0.0711021]
[1771132616202,0.00040002,70329.0,70323.0,0.07110023]
[1771132616410,0.00012,70331.0,70327.0,0.07109633]
[1771132616897,0.04775086,70339.0,70322.0,0.28250611]
[1771132617194,0.07108742,70336.0,70321.0,0.43579559]
[1771132617392,0.04775086,70339.0,70320.0,0.00012]
[1771132617393,0.07108674,70337.0,70329.0,0.07109354]
[1771132618093,0.07109251,70331.0,70324.0,0.0234481]
[1771132618331,0.07109169,70332.0,70325.0,0.0234481]
[1771132618497,0.07109169,70332.0,70326.0,0.0234481]
[1771132619086,0.0004,70329.0,70326.0,0.0234481]
[1771132619289,0.07109169,70332.0,70325.0,0.07109837]
[1771132619492,0.0710929,70331.0,70326.0,0.0234481]
[1771132619667,0.0710929,70331.0,70323.0,0.3536058]
[1771132619668,0.15671581,70337.0,70325.0,0.07109757]
[1771132619881,0.0004,70337.0,70323.0,0.28250611]
[1771132620082,0.0004,70337.0,70325.0,0.43579559]
[1771132620282,0.0004,70337.0,70326.0,0.28250611]
[1771132620482,0.0004,70337.0,70327.0,0.28250611]
[1771132620705,0.0004,70337.0,70329.0,0.07109344]
[1771132620881,0.0004,70337.0,70327.0,0.28250611]
[1771132621283,0.0004,70337.0,70331.0,0.07109147]
[1771132621599,0.0004,70337.0,70331.0,0.0699376]
[1771132621902,0.07148655,70337.0,70329.0,0.0234481]
[1771132622108,0.07110006,70324.0,70320.0,0.00012]
[1771132622376,0.15631581,70328.0,70320.0,0.00012]
[1771132622709,0.0004,70337.0,70322.0,0.07110066]
[1771132622921,0.07109318,70331.0,70327.0,0.001]
[1771132623245,0.15671581,70337.0,70326.0,0.07109712]
[1771132623445,0.33489479,70360.0,70329.0,0.0710942]
[1771132623652,0.07108451,70339.0,70322.0,0.0234481]
[1771132623850,0.15631581,70346.0,70332.0,0.0234481]
[1771132623851,0.07108542,70338.0,70332.0,0.0234481]
[1771132624057,0.07108542,70338.0,70331.0,0.07109195]
[1771132624513,0.07108542,70338.0,70320.0,0.42605479]
[1771132624514,0.04775086,70338.0,70320.0,0.09116]
[1771132624713,0.04775086,70339.0,70320.0,0.00012]
[1771132624914,0.15663971,70341.0,70325.0,0.07109765]
[1771132624915,0.07109116,70333.0,70325.0,0.07109765]
[1771132625092,0.07109154,70332.0,70325.0,0.07109765]
[1771132625295,0.07109154,70332.0,70323.0,0.07109973]
[1771132625296,0.04775086,70333.0,70323.0,0.07109974]
[1771132625520,1e-08,70325.0,70320.0,0.00012]
[1771132625727,0.02449907,70328.0,70320.0,0.00012]
[1771132625932,0.02449907,70327.0,70320.0,0.07122325]
[1771132626106,0.07109624,70328.0,70320.0,0.07122325]
[1771132626318,0.07109624,70328.0,70321.0,0.07110212]
[1771132626494,0.22741023,70329.0,70322.0,0.07110147]
[1771132626860,0.07109442,70329.0,70322.0,0.07110147]
[1771132628117,0.09559349,70329.0,70322.0,0.07110147]
[1771132628983,0.09559349,70329.0,70320.0,0.07122325]
[1771132628984,0.07109568,70328.0,70320.0,0.00012]
[1771132629187,0.09559349,70329.0,70322.0,0.07110139]
[1771132629388,0.02449907,70329.0,70320.0,0.00012]
[1771132629880,0.02449907,70329.0,70321.0,0.07110169]
[1771132630058,0.07109518,70330.0,70322.0,0.0711007]
[1771132630389,0.07109618,70328.0,70320.0,0.07122348]
[1771132630883,0.15631581,70330.0,70314.0,0.07110942]
[1771132630884,0.15631581,70329.0,70314.0,0.07110942]
[1771132631024,0.07110337,70321.0,70314.0,0.00013001]
[1771132631230,0.07110371,70320.0,70314.0,0.00013001]
[1771132631430,0.07110337,70321.0,70314.0,0.00013001]
[1771132631431,0.07110481,70319.0,70314.0,0.00013001]
[1771132631660,0.15631581,70318.0,70312.0,7e-05]
[1771132631861,0.15631581,70318.0,70305.0,0.0236481]
[1771132631862,0.15631581,70315.0,70305.0,0.0002]
[1771132632195,0.02449907,70314.0,70305.0,0.0002]
[1771132632358,0.02449907,70314.0,70307.0,0.07111623]
[1771132632563,0.07111158,70313.0,70306.0,0.07111744]
[1771132632726,0.02449907,70312.0,70306.0,0.07111744]
[1771132632932,0.02449907,70312.0,70305.0,0.0002]
[1771132632933,0.02449907,70311.0,70305.0,0.0002]
[1771132633172,0.07111463,70310.0,70305.0,0.0002]
[1771132633388,0.07111625,70308.0,70305.0,0.0002]
[1771132633588,0.02387543,70307.0,70305.0,0.0002]
[1771132634090,0.07112038,70304.0,70300.0,0.00012]
[1771132634288,0.07111805,70306.0,70300.0,0.00012]
[1771132634624,0.0711167,70307.0,70300.0,0.07124342]
[1771132634929,0.28443586,70315.0,70300.0,0.07124342]
[1771132634930,1e-08,70355.0,70354.0,0.07106916]
[1771132635107,0.16136166,70365.0,70354.0,0.07119908]
[1771132635313,0.07105988,70364.0,70354.0,0.00012992]
[1771132635517,0.07106212,70361.0,70354.0,0.00012992]
[1771132635819,0.0710611,70362.0,70354.0,0.07119868]
[1771132635994,0.02387543,70358.0,70355.0,0.07106809]
[1771132636316,0.02387543,70362.0,70357.0,0.0710661]
[1771132636516,0.02387543,70362.0,70355.0,0.07106809]
[1771132637130,0.02387543,70362.0,70356.0,0.07106706]
[1771132637455,0.02387543,70362.0,70351.0,0.28428621]
[1771132637632,0.00045394,70359.0,70355.0,0.0710674]
[1771132638254,0.00045394,70359.0,70336.0,0.28297401]
[1771132638255,8e-05,70380.0,70372.0,0.07105098]
[1771132638564,8e-05,70380.0,70370.0,0.02408151]
[1771132638565,0.01184264,70373.0,70370.0,0.02408151]
[1771132638755,0.01184264,70373.0,70362.0,0.02408151]
[1771132638969,0.0004332,70373.0,70372.0,0.02408151]
[1771132639192,0.0004332,70373.0,70372.0,0.09513249]
[1771132639439,0.0004332,70373.0,70356.0,0.09104]
[1771132639440,8e-05,70380.0,70379.0,0.02408151]
[1771132639660,0.07103706,70386.0,70376.0,0.07104629]
[1771132639878,0.07103789,70385.0,70377.0,0.02408151]
[1771132640097,0.07103947,70384.0,70376.0,0.07104629]
[1771132640322,0.07103789,70385.0,70376.0,0.07104629]
[1771132640521,0.07103789,70385.0,70378.0,0.07104474]
[1771132640718,0.00012991,70386.0,70373.0,0.17373313]
[1771132641012,0.00012991,70386.0,70382.0,0.07103999]
[1771132641232,0.00012991,70386.0,70373.0,0.17373313]
[1771132641418,0.00012991,70386.0,70379.0,0.07104301]
[1771132641622,0.00012991,70386.0,70381.0,0.07104185]
[1771132642307,0.23239333,70393.0,70361.0,0.28424433]
[1771132642546,0.07102391,70399.0,70391.0,0.07103082]
[1771132642765,0.07102557,70399.0,70391.0,0.07103173]
[1771132642970,0.07102112,70402.0,70393.0,0.07102978]
[1771132643081,0.07101956,70405.0,70393.0,0.09511129]
[1771132643298,0.00796107,70408.0,70393.0,0.09511129]
[1771132643299,0.00796107,70408.0,70393.0,0.02408151]
[1771132643504,0.07102393,70399.0,70393.0,0.02408151]
[1771132643757,0.07102393,70399.0,70390.0,0.02420151]
[1771132643978,0.33489479,70420.0,70390.0,0.02420151]
[1771132643979,0.0004237,70441.0,70393.0,0.03498916]
[1771132644168,0.0004237,70441.0,70391.0,0.14575218]
[1771132644169,0.00255131,70432.0,70416.0,0.07100642]
[1771132644315,0.02298168,70430.0,70416.0,0.07100625]
[1771132644513,0.02298168,70430.0,70410.0,0.13124]
[1771132644514,0.07100004,70423.0,70410.0,0.07101247]
[1771132644714,0.07099871,70424.0,70415.0,0.0710066]
[1771132644941,0.07099875,70424.0,70415.0,0.0710066]
[1771132645168,0.02298168,70428.0,70410.0,0.171484]
[1771132645516,0.07099146,70431.0,70419.0,0.07100336]
[1771132645640,0.00024988,70433.0,70425.0,0.07099713]
[1771132645835,0.00024988,70433.0,70419.0,0.171484]
[1771132646087,0.04967973,70430.0,70421.0,0.10268251]
[1771132646311,0.00024988,70433.0,70421.0,0.10268251]
[1771132646312,0.04968058,70429.0,70421.0,0.03168152]
[1771132646594,0.04968058,70429.0,70417.0,0.07100557]
[1771132646595,0.04968329,70427.0,70419.0,0.07100335]
[1771132646818,0.07099146,70431.0,70416.0,0.07100636]
[1771132647014,0.07099519,70428.0,70418.0,0.07100455]
[1771132648157,0.07099519,70428.0,70420.0,0.07100254]
[1771132648443,0.07099576,70427.0,70419.0,0.07100349]
[1771132648787,0.07099453,70428.0,70419.0,0.07100349]
[1771132649810,0.0004,70432.0,70417.0,0.19505725]
[1771132650028,0.0004,70432.0,70426.0,0.07099596]
[1771132650338,0.0004,70432.0,70426.0,0.0709965]
[1771132650518,0.28433253,70440.0,70436.0,0.07098598]
[1771132650519,0.0004,70440.0,70436.0,0.07098598]
[1771132650724,0.0709724,70450.0,70440.0,0.07098239]
[1771132650892,0.16136166,70457.0,70440.0,0.1435245]
[1771132651323,0.07097754,70445.0,70440.0,0.1435245]
[1771132651762,0.07098456,70438.0,70430.0,0.07099159]
[1771132651977,0.21906338,70527.0,70440.0,0.14339462]
[1771132652280,0.00043304,70479.0,70470.0,0.171484]
[1771132652459,0.0709408,70482.0,70472.0,0.14339462]
[1771132652694,0.07093841,70484.0,70472.0,0.48371462]
[1771132652886,0.44506167,70498.0,70470.0,0.34032]
[1771132653129,0.21906338,70499.0,70470.0,0.34032]
[1771132653130,0.07095039,70472.0,70470.0,0.34032]
[1771132653304,0.07095041,70472.0,70470.0,0.34032]
[1771132653522,0.07108005,70472.0,70471.0,0.14339462]
[1771132653677,0.00012978,70472.0,70471.0,0.14339462]
[1771132653915,0.00012978,70472.0,70464.0,0.14339462]
[1771132654714,0.00012978,70472.0,70466.0,0.07095603]
[1771132654887,0.00012978,70472.0,70465.0,0.07095721]
[1771132655079,0.33500862,70510.0,70462.0,0.34028]
[1771132655281,0.07093258,70490.0,70477.0,0.14339462]
[1771132655611,0.00012973,70497.0,70472.0,0.14339462]
[1771132655811,0.0709281,70494.0,70485.0,0.14339462]
[1771132656013,0.07092655,70496.0,70486.0,0.07093607]
[1771132656194,0.00012973,70497.0,70484.0,0.07080751]
[1771132656195,0.00012973,70497.0,70485.0,0.14339462]
[1771132656389,0.00012973,70497.0,70485.0,0.21433094]
[1771132656598,0.16149139,70497.0,70485.0,0.14339462]
[1771132656799,0.0709311,70491.0,70485.0,0.14339462]
[1771132657009,0.07093204,70490.0,70485.0,0.14339462]
[1771132657218,0.00012973,70497.0,70478.0,0.3402]
[1771132657410,0.00012973,70497.0,70480.0,0.33489479]
[1771132657411,0.07092836,70494.0,70480.0,0.33489479]
[1771132657667,0.07105474,70497.0,70486.0,0.14339462]
[1771132657668,0.0004,70487.0,70486.0,0.14339462]
[1771132658336,0.0004,70487.0,70483.0,0.10275586]
[1771132658663,0.0004,70487.0,70470.0,0.00012]
[1771132658859,0.07094487,70478.0,70470.0,0.00012]
[1771132659008,0.18643667,70479.0,70470.0,0.00012]
[1771132659358,0.18643667,70479.0,70470.0,0.07095201]
[1771132659782,0.18643667,70479.0,70468.0,0.07095354]
[1771132660068,0.18643667,70479.0,70467.0,0.0709542]
[1771132660069,0.07094538,70477.0,70467.0,0.07095472]
[1771132660319,0.18643667,70479.0,70465.0,0.07095721]
[1771132660514,0.18643667,70479.0,70472.0,0.002]
[1771132660667,0.07094824,70474.0,70465.0,0.07095721]
[1771132661103,0.00012,70480.0,70460.0,0.3402]
[1771132661304,0.07095219,70470.0,70460.0,0.3402]
[1771132661680,0.07095219,70470.0,70462.0,0.07096022]
[1771132662071,0.07095219,70470.0,70460.0,0.41159502]
[1771132662072,0.07095407,70469.0,70460.0,0.41159518]
[1771132662281,1e-08,70467.0,70460.0,0.00055304]
[1771132662730,0.07095827,70464.0,70460.0,0.00055304]
[1771132662928,0.3335441,70470.0,70450.0,0.00012]
[1771132663134,0.07095419,70468.0,70450.0,0.00012]
[1771132663432,1e-08,70455.0,70450.0,0.00012]
[1771132663663,0.07096607,70457.0,70450.0,0.00012]
[1771132664188,0.25023133,70459.0,70450.0,0.00012]
[1771132664395,0.07096154,70461.0,70450.0,0.07109207]
[1771132664593,0.07096431,70458.0,70450.0,0.00012]
[1771132664796,0.07096529,70457.0,70450.0,0.00012]
[1771132665194,0.28384496,70464.0,70450.0,0.00012]
[1771132665450,0.179268,70452.0,70443.0,0.0002096]
[1771132665650,0.179268,70459.0,70440.0,0.00012]
[1771132665863,0.179268,70450.0,70440.0,0.00012]
[1771132666101,0.07097718,70446.0,70440.0,0.00012]
[1771132666234,0.179268,70450.0,70440.0,0.00012]
[1771132666439,0.28386214,70457.0,70440.0,0.00012]
[1771132666440,0.07098031,70443.0,70440.0,0.00012]
[1771132666645,0.179268,70447.0,70440.0,0.00012]
[1771132666967,0.0709803,70443.0,70440.0,0.00012]
[1771132667317,0.0709803,70443.0,70433.0,0.42349419]